bitfinex-derivatives/quotes_BNBF0:USTF0_20251027
["timestamp","ask_amount","ask_price","bid_price","bid_amount"]
[1761556699175,2.13925744,1156.8,1153.8,1.018]
[1761556700171,2.13925744,1156.5,1153.8,1.018]
[1761556700771,2.13925744,1156.4,1153.8,1.018]
[1761556701275,3.14552689,1156.9,1153.8,1.018]
[1761556701873,0.15062099,1156.9,1153.8,1.018]
[1761556703478,2.13925744,1156.3,1153.9,0.56718147]
[1761556703775,0.15062099,1156.9,1153.8,1.018]
[1761556707882,2.28987843,1156.9,1153.8,1.018]
[1761556708482,2.13925744,1155.8,1153.8,1.018]
[1761556708678,2.13925744,1155.9,1153.8,1.018]
[1761556708882,2.13925744,1156.1,1153.8,1.018]
[1761556710484,2.13925744,1156.3,1153.8,1.018]
[1761556712685,5.13416334,1156.7,1153.9,0.56756947]
[1761556712984,2.9949059,1156.7,1153.8,1.018]
[1761556713183,0.15062099,1156.9,1153.9,0.56756911]
[1761556713384,0.15062099,1156.9,1154.0,1.56168639]
[1761556713584,0.15062099,1156.9,1154.0,0.994]
[1761556716590,0.15062099,1156.9,1154.1,0.56839825]
[1761556716890,0.15062099,1156.9,1154.2,0.56839825]
[1761556717087,0.15062099,1156.9,1154.3,0.56839825]
[1761556717291,0.15062099,1156.9,1154.0,0.994]
[1761556717496,0.15062099,1156.9,1154.1,0.56854021]
[1761556717688,0.15062099,1156.9,1154.2,0.56854021]
[1761556717889,0.15062099,1156.9,1154.3,0.56854021]
[1761556718089,0.15062099,1156.9,1154.0,0.994]
[1761556718294,0.15062099,1156.9,1154.1,0.5689044]
[1761556718492,0.15062099,1156.9,1154.2,0.5689044]
[1761556718692,0.15062099,1156.9,1154.3,0.5689044]
[1761556718893,0.15062099,1156.9,1154.0,0.994]
[1761556719094,0.15062099,1156.9,1154.1,0.56881589]
[1761556719289,0.15062099,1156.9,1154.2,0.56881589]
[1761556719594,2.13925744,1156.7,1154.3,0.56881589]
[1761556719790,2.13925744,1156.7,1154.4,0.56881589]
[1761556720095,2.13925744,1156.8,1154.0,1.63845127]
[1761556720394,2.13925744,1156.8,1154.1,1.21450534]
[1761556720594,2.13925744,1156.7,1154.2,0.57005407]
[1761556720894,2.13925744,1156.7,1154.3,0.57005407]
[1761556721094,2.13925744,1156.7,1154.4,0.57005407]
[1761556721296,2.13925744,1156.7,1154.5,0.57005407]
[1761556721590,2.13925744,1156.7,1154.1,0.64445127]
[1761556721794,2.13925744,1156.7,1154.2,0.57007239]
[1761556721995,2.13925744,1156.7,1154.3,0.57007239]
[1761556722194,2.13925744,1156.7,1154.4,0.57007239]
[1761556722394,2.13925744,1156.7,1154.0,1.63845127]
[1761556722691,2.13925744,1156.7,1154.1,0.56998661]
[1761556722893,2.13925744,1157.8,1154.2,0.56998661]
[1761556723091,0.15061773,1157.2,1154.3,0.56998661]
[1761556723291,0.15061773,1157.2,1154.4,0.56998661]
[1761556723491,0.15061773,1157.2,1154.5,0.56998661]
[1761556723694,0.15061773,1157.2,1154.6,0.56998661]
[1761556723896,0.15061773,1157.2,1154.7,0.56998661]
[1761556724098,0.15061773,1157.2,1154.1,0.64445127]
[1761556724296,0.15061773,1157.2,1154.2,0.56954605]
[1761556724496,0.15061773,1157.2,1154.3,0.56954605]
[1761556724697,0.15061773,1157.2,1154.4,0.56954605]
[1761556724897,0.15061773,1157.2,1154.5,0.56954605]
[1761556725196,0.15061773,1157.2,1154.6,1.70054605]
[1761556725498,0.15061773,1157.2,1154.6,1.131]
[1761556726097,2.13925744,1156.8,1154.6,1.131]
[1761556729798,2.13925744,1156.5,1154.6,1.131]
[1761556730703,2.9949059,1156.9,1154.6,1.131]
[1761556731205,0.15061773,1157.2,1154.6,1.131]
[1761556732805,2.28987517,1157.2,1154.6,1.131]
[1761556733305,2.13925744,1156.8,1154.6,1.131]
[1761556734608,2.13925744,1156.6,1154.6,1.131]
[1761556734906,2.13925744,1156.7,1154.6,1.131]
[1761556735403,2.13925744,1156.6,1154.6,1.131]
[1761556738510,2.13925744,1156.7,1154.6,1.131]
[1761556739512,0.15061773,1157.2,1154.6,1.131]
[1761556740710,2.13925744,1157.0,1154.6,1.131]
[1761556741113,2.13925744,1156.4,1154.6,1.131]
[1761556741715,2.13925744,1156.3,1154.6,1.131]
[1761556742310,2.13925744,1156.1,1154.6,1.131]
[1761556742711,2.13925744,1156.0,1154.6,1.131]
[1761556743813,0.15061773,1157.2,1154.6,1.131]
[1761556748622,2.13925744,1155.9,1154.6,1.131]
[1761556749923,2.13925744,1156.1,1154.6,1.131]
[1761556751423,2.13925744,1156.2,1154.6,1.131]
[1761556752526,2.13925744,1155.9,1154.6,1.131]
[1761556753724,2.9949059,1156.3,1154.6,1.131]
[1761556754024,0.15061773,1157.2,1154.6,1.131]
[1761556754823,2.28987517,1157.2,1154.6,1.131]
[1761556755323,2.13925744,1157.1,1154.6,1.131]
[1761556756124,2.13925744,1157.1,1154.7,1.248]
[1761556757329,2.13925744,1157.0,1154.7,1.248]
[1761556759924,2.13925744,1156.3,1154.7,1.248]
[1761556760628,2.13925744,1156.6,1154.7,1.248]
[1761556761027,5.13416334,1156.7,1154.7,1.248]
[1761556761326,2.13925744,1156.7,1154.7,1.248]
[1761556762028,2.13925744,1156.9,1154.7,1.248]
[1761556762729,2.13925744,1156.5,1154.7,1.248]
[1761556763030,2.13925744,1156.6,1154.7,1.248]
[1761556764625,2.13925744,1156.7,1154.7,1.248]
[1761556765130,2.13925744,1156.6,1154.7,1.248]
[1761556765630,2.13925744,1156.3,1154.7,1.248]
[1761556766629,2.13925744,1156.4,1154.7,1.248]
[1761556767232,2.13925744,1156.3,1154.7,1.248]
[1761556770435,2.13925744,1156.2,1154.7,1.248]
[1761556771934,2.13925744,1156.3,1154.7,1.248]
[1761556772335,2.13925744,1156.7,1154.7,1.248]
[1761556772836,2.13925744,1156.8,1154.7,1.248]
[1761556773433,2.13925744,1155.9,1154.7,1.248]
[1761556773838,2.13925744,1155.7,1154.7,1.248]
[1761556774438,2.13925744,1155.6,1154.7,1.248]
[1761556775135,2.13925744,1155.7,1154.7,1.248]
[1761556775440,2.13925744,1155.9,1154.7,1.248]
[1761556777541,2.13925744,1156.2,1154.7,1.248]
[1761556780040,2.13925744,1156.3,1154.7,1.248]
[1761556780641,2.13925744,1156.3,1154.8,1.134]
[1761556781539,2.13925744,1156.2,1154.8,1.134]
[1761556782139,2.13925744,1156.3,1154.8,1.134]
[1761556782543,2.13925744,1156.2,1154.8,1.134]
[1761556786648,2.13925744,1156.5,1154.8,1.134]
[1761556787547,2.9949059,1157.0,1154.8,1.134]
[1761556787548,2.13925744,1156.7,1154.8,1.134]
[1761556789248,2.13925744,1156.5,1154.8,1.134]
[1761556789849,2.13925744,1156.3,1154.8,1.134]
[1761556790652,2.9949059,1156.7,1154.8,1.134]
[1761556791349,0.15061773,1157.2,1154.8,1.134]
[1761556800059,2.13925744,1157.0,1154.8,1.134]
[1761556801060,2.13925744,1156.8,1154.8,1.134]
[1761556801658,2.13925744,1156.7,1154.8,1.134]
[1761556801964,2.13925744,1156.8,1154.8,1.134]
[1761556802462,2.13925744,1156.7,1154.8,1.134]
[1761556803964,2.9949059,1157.2,1154.8,1.134]
[1761556803965,2.13925744,1157.2,1154.8,1.134]
[1761556804166,2.13925744,1157.2,1154.9,0.56848076]
[1761556804362,2.13925744,1157.2,1154.8,1.134]
[1761556804567,2.13925744,1157.2,1154.9,0.56836071]
[1761556804766,2.13925744,1157.8,1155.0,0.56836071]
[1761556804966,2.13925744,1157.8,1155.1,0.56836071]
[1761556805263,0.15051057,1158.2,1154.8,1.134]
[1761556805462,0.15051057,1158.2,1154.9,0.5677199]
[1761556805666,0.15051057,1158.2,1154.8,1.134]
[1761556805667,0.15051057,1158.2,1155.0,0.5677199]
[1761556805865,0.15051057,1158.2,1154.8,1.134]
[1761556806166,0.15051057,1158.2,1154.9,0.56774883]
[1761556806364,0.15051057,1158.2,1155.0,0.56774883]
[1761556806562,0.15051057,1158.2,1154.5,0.64445127]
[1761556806765,0.15051057,1158.2,1154.6,0.56720664]
[1761556806964,0.15051057,1158.2,1154.7,1.73120664]
[1761556807268,0.15051057,1158.2,1154.8,0.56720664]
[1761556807566,0.15051057,1158.2,1154.9,0.56720664]
[1761556807764,0.15051057,1158.2,1155.0,0.56720664]
[1761556807969,0.15051057,1158.2,1154.7,1.164]
[1761556808169,0.15051057,1158.2,1154.8,0.56676573]
[1761556808365,0.15051057,1158.2,1154.9,0.56676573]
[1761556808573,0.15051057,1158.2,1155.0,0.56676573]
[1761556808768,0.15051057,1158.2,1154.7,1.164]
[1761556808973,0.15051057,1158.2,1154.8,0.56642281]
[1761556809270,0.15051057,1158.2,1154.9,0.56642281]
[1761556809464,0.15051057,1158.2,1155.0,0.56642281]
[1761556809665,0.15051057,1158.2,1154.7,1.164]
[1761556809871,0.15051057,1158.2,1154.8,1.46513091]
[1761556810167,0.15051057,1158.2,1154.9,0.56613091]
[1761556810470,0.15051057,1158.2,1155.0,0.56613091]
[1761556810667,0.15051057,1158.2,1154.8,0.899]
[1761556810872,0.15051057,1158.2,1154.9,0.5658923]
[1761556811170,0.15051057,1158.2,1155.0,0.5658923]
[1761556811373,0.15051057,1158.2,1155.1,0.5658923]
[1761556811571,0.15051057,1158.2,1155.2,0.5658923]
[1761556811775,0.15051057,1158.2,1155.3,0.5658923]
[1761556811968,0.15051057,1158.2,1154.8,1.54345127]
[1761556812172,0.15051057,1158.2,1154.9,0.56507995]
[1761556812369,4.2445844,1160.7,1155.0,1.20953122]
[1761556812370,2.13925744,1159.2,1155.0,1.20953122]
[1761556812573,0.15043282,1158.5,1155.1,0.56507995]
[1761556812873,0.15043282,1158.5,1155.2,0.56507995]
[1761556813073,0.15043282,1158.5,1155.3,0.56507995]
[1761556813373,0.15043282,1158.5,1155.4,0.56507995]
[1761556813577,0.15043282,1158.5,1155.5,0.56507995]
[1761556813770,0.15043282,1158.5,1155.6,0.56507995]
[1761556813970,0.15043282,1158.5,1155.1,0.64445127]
[1761556814174,0.15043282,1158.5,1155.2,0.56419152]
[1761556814369,0.15043282,1158.5,1155.3,0.56419152]
[1761556814576,0.15043282,1158.5,1155.4,0.56419152]
[1761556814871,0.15043282,1158.5,1155.5,0.56419152]
[1761556815070,0.15043282,1158.5,1155.6,0.56419152]
[1761556815370,0.15043282,1158.5,1155.7,0.56306454]
[1761556815575,0.15043282,1158.5,1155.8,0.56306454]
[1761556815773,0.15043282,1158.5,1155.4,0.64445127]
[1761556815974,0.15043282,1158.5,1155.5,0.56307699]
[1761556816175,0.15043282,1158.5,1155.6,0.56307699]
[1761556816479,2.13925744,1160.1,1155.7,1.20752826]
[1761556816676,0.15037367,1158.8,1155.8,0.56307699]
[1761556816972,2.13925744,1160.0,1155.9,0.56307699]
[1761556817171,0.15034768,1158.8,1156.0,0.56307699]
[1761556817375,0.15034768,1158.8,1156.1,0.56307699]
[1761556817573,2.13925744,1160.1,1155.6,0.64445127]
[1761556817772,0.15034443,1158.8,1155.7,0.56159516]
[1761556818080,2.13925744,1160.0,1155.8,0.56159516]
[1761556818379,0.15035093,1158.8,1155.9,0.56159516]
[1761556818581,2.13925744,1160.4,1156.0,0.56159516]
[1761556818773,2.13925744,1160.4,1156.1,0.56159516]
[1761556818981,0.15034248,1158.9,1155.6,0.64445127]
[1761556819287,2.13925744,1160.4,1155.7,0.56102575]
[1761556819574,0.15033924,1158.9,1155.8,0.56102575]
[1761556819874,2.13925744,1160.5,1155.9,0.56102575]
[1761556820180,0.15032949,1158.9,1156.0,0.56102575]
[1761556820378,5.13416334,1161.0,1156.1,0.56102575]
[1761556820578,0.15030677,1158.9,1156.2,0.56102575]
[1761556820774,0.15030677,1158.9,1155.6,0.64445127]
[1761556820984,2.13925744,1161.0,1155.7,0.56004456]
[1761556821175,0.15029054,1159.0,1155.8,0.56004456]
[1761556821377,0.15029054,1159.0,1155.9,0.56004456]
[1761556821576,2.13925744,1161.5,1156.0,0.56004456]
[1761556821778,0.15028665,1159.0,1156.1,0.56004456]
[1761556821978,0.15028665,1159.0,1156.2,0.56004456]
[1761556822174,2.13925744,1161.6,1156.3,0.56004456]
[1761556822377,0.15027367,1159.0,1155.4,0.64445127]
[1761556822580,2.13925744,1161.6,1155.5,0.5591343]
[1761556822775,2.13925744,1161.5,1155.6,0.5591343]
[1761556822979,0.15029443,1159.0,1155.7,0.5591343]
[1761556823177,2.13925744,1161.5,1155.8,0.5591343]
[1761556823375,2.13925744,1161.5,1155.9,0.5591343]
[1761556823674,2.13925744,1161.5,1156.0,0.5591343]
[1761556823980,0.15029054,1160.2,1156.1,0.5591343]
[1761556824277,0.15029054,1160.2,1155.3,0.64445127]
[1761556824475,0.15029054,1160.2,1155.4,0.55844156]
[1761556824677,0.15029054,1160.2,1155.5,0.55844156]
[1761556824876,0.15029054,1160.2,1155.6,0.55844156]
[1761556825076,0.15029054,1160.2,1155.7,0.55844156]
[1761556825282,0.15029054,1160.2,1155.8,0.55844156]
[1761556825480,0.15029054,1160.2,1155.9,0.55844156]
[1761556825780,0.15029054,1160.2,1156.0,0.55844156]
[1761556825980,0.15029054,1160.2,1156.1,0.55844156]
[1761556826280,0.15029054,1160.2,1155.3,0.64445127]
[1761556826576,0.15029054,1160.2,1155.4,0.55781351]
[1761556826774,0.15029054,1160.2,1155.5,0.55781351]
[1761556826979,0.15029054,1160.2,1155.6,0.55781351]
[1761556827177,0.15029054,1160.2,1155.7,0.55781351]
[1761556827376,0.15029054,1160.2,1155.8,0.55781351]
[1761556827580,0.15029054,1160.2,1155.9,0.55781351]
[1761556827875,0.15029054,1160.2,1156.0,0.55781351]
[1761556828080,0.15029054,1160.2,1155.4,0.64445127]
[1761556828379,0.15029054,1160.2,1155.5,0.55733077]
[1761556828588,0.15029054,1160.2,1155.6,0.55733077]
[1761556828783,0.15029054,1160.2,1155.7,0.55733077]
[1761556829082,0.15029054,1160.2,1155.8,0.55733077]
[1761556829382,0.15029054,1160.2,1155.9,0.55733077]
[1761556829582,0.15029054,1160.2,1156.0,0.55733077]
[1761556829782,0.15029054,1160.2,1155.2,0.64445127]
[1761556830084,0.15029054,1160.2,1155.3,0.55711206]
[1761556830280,0.15029054,1160.2,1155.4,0.55711206]
[1761556830483,0.15029054,1160.2,1155.5,0.55711206]
[1761556830682,0.15029054,1160.2,1155.6,0.55711206]
[1761556830980,0.15029054,1160.2,1155.7,0.55711206]
[1761556831179,0.15029054,1160.2,1155.8,0.55711206]
[1761556831382,0.15029054,1160.2,1155.9,0.55711206]
[1761556831582,0.15029054,1160.2,1155.2,0.64445127]
[1761556831779,0.15029054,1160.2,1155.3,0.55684945]
[1761556831983,0.15029054,1160.2,1155.4,0.55684945]
[1761556832284,0.15029054,1160.2,1155.5,0.55684945]
[1761556832485,0.15029054,1160.2,1154.8,1.75159896]
[1761556832486,0.15029054,1160.2,1155.6,0.55684945]
[1761556832684,0.15029054,1160.2,1155.7,0.55684945]
[1761556832880,0.15029054,1160.2,1155.8,0.55684945]
[1761556833087,0.15029054,1160.2,1155.2,0.64445127]
[1761556833285,0.15029054,1160.2,1155.3,0.55652239]
[1761556833596,0.15029054,1160.2,1155.4,0.55652239]
[1761556833782,0.15029054,1160.2,1155.5,0.55652239]
[1761556833988,0.15029054,1160.2,1155.6,0.55652239]
[1761556834188,0.15029054,1160.2,1155.7,0.55652239]
[1761556834386,0.15029054,1160.2,1155.8,0.55652239]
[1761556834688,0.15029054,1160.2,1155.9,0.55662664]
[1761556834885,0.15029054,1160.2,1155.1,0.62978724]
[1761556835186,0.15029054,1160.2,1155.2,0.55663486]
[1761556835384,0.15029054,1160.2,1155.3,0.55663486]
[1761556835583,0.15029054,1160.2,1155.4,0.55663486]
[1761556835783,0.15029054,1160.2,1155.5,0.55663486]
[1761556835988,0.15029054,1160.2,1155.6,0.55663486]
[1761556836188,0.15029054,1160.2,1155.7,0.55663486]
[1761556836388,0.15029054,1160.2,1155.8,0.55663486]
[1761556836589,0.15029054,1160.2,1155.9,0.55663486]
[1761556836787,0.15029054,1160.2,1155.3,0.62978724]
[1761556836988,0.15029054,1160.2,1155.5,0.62978724]
[1761556837184,0.15029054,1160.2,1155.6,0.55672459]
[1761556837485,0.15029054,1160.2,1155.7,0.55672459]
[1761556837683,0.15029054,1160.2,1155.8,0.55672459]
[1761556837887,0.15029054,1160.2,1155.9,0.55672459]
[1761556838094,0.15029054,1160.2,1156.0,0.55672459]
[1761556838386,0.15029054,1160.2,1156.1,0.55672459]
[1761556838588,0.15029054,1160.2,1155.5,0.62978724]
[1761556838886,0.15029054,1160.2,1155.6,0.55659951]
[1761556839087,0.15029054,1160.2,1155.7,0.55659951]
[1761556839387,0.15029054,1160.2,1155.8,0.55659951]
[1761556839590,0.15029054,1160.2,1155.9,0.55659951]
[1761556839789,0.15029054,1160.2,1156.0,0.55659951]
[1761556840086,0.15029054,1160.2,1156.1,0.55659951]
[1761556840289,0.15029054,1160.2,1155.5,0.62978724]
[1761556840490,0.15029054,1160.2,1155.6,0.556928]
[1761556840688,0.15029054,1160.2,1155.7,0.556928]
[1761556840886,0.15029054,1160.2,1155.8,0.556928]
[1761556841190,0.15029054,1160.2,1155.9,0.556928]
[1761556841389,0.15029054,1160.2,1156.0,1.5432288]
[1761556841590,0.15029054,1160.2,1156.0,0.986]
[1761556842289,0.15029054,1160.2,1156.1,0.55740272]
[1761556842589,0.15029054,1160.2,1156.0,0.986]
[1761556842791,0.15029054,1160.2,1156.1,0.55740135]
[1761556842990,0.15029054,1160.2,1156.0,0.986]
[1761556843290,0.15029054,1160.2,1156.1,0.5575989]
[1761556843590,0.15029054,1160.2,1156.0,0.986]
[1761556843790,0.15029054,1160.2,1156.1,0.5575866]
[1761556843989,0.15029054,1160.2,1156.0,0.986]
[1761556844288,0.15029054,1160.2,1156.1,0.55758642]
[1761556844495,0.15029054,1160.2,1156.2,0.55758642]
[1761556844790,0.15029054,1160.2,1156.0,0.986]
[1761556844990,0.15029054,1160.2,1156.1,0.55761316]
[1761556845189,0.15029054,1160.2,1156.2,0.55761316]
[1761556845393,0.15029054,1160.2,1156.3,0.55761316]
[1761556845592,0.15029054,1160.2,1156.0,0.986]
[1761556845793,0.15029054,1160.2,1156.1,0.5578536]
[1761556846093,0.15029054,1160.2,1156.2,0.5578536]
[1761556846287,0.15029054,1160.2,1156.3,0.5578536]
[1761556846488,0.15029054,1160.2,1156.0,0.986]
[1761556846789,0.15029054,1160.2,1156.1,0.55808861]
[1761556846989,0.15029054,1160.2,1156.2,0.55808861]
[1761556847193,0.15029054,1160.2,1156.0,0.986]
[1761556847194,0.15029054,1160.2,1156.3,0.55808861]
[1761556847396,0.15029054,1160.2,1156.4,0.55808861]
[1761556847596,0.15029054,1160.2,1156.0,0.986]
[1761556847797,0.15029054,1160.2,1156.1,0.55831031]
[1761556847992,0.15029054,1160.2,1156.2,0.55831031]
[1761556848293,0.15029054,1160.2,1156.3,0.55831031]
[1761556848493,0.15029054,1160.2,1156.4,0.55831031]
[1761556848697,0.15029054,1160.2,1156.0,0.986]
[1761556848897,0.15029054,1160.2,1156.1,0.55856925]
[1761556849097,0.15029054,1160.2,1156.2,0.55856925]
[1761556849393,0.15029054,1160.2,1156.3,0.55856925]
[1761556849596,0.15029054,1160.2,1156.4,0.55856925]
[1761556849899,0.15029054,1160.2,1156.0,0.986]
[1761556850098,0.15029054,1160.2,1156.1,0.55883052]
[1761556850394,0.15029054,1160.2,1156.2,0.55883052]
[1761556850595,0.15029054,1160.2,1156.0,0.986]
[1761556850794,0.15029054,1160.2,1156.1,0.5593548]
[1761556851094,0.15029054,1160.2,1156.2,0.5593548]
[1761556851294,0.15029054,1160.2,1156.3,0.5593548]
[1761556851494,0.15029054,1160.2,1156.4,0.5593548]
[1761556851800,0.15029054,1160.2,1156.0,0.986]
[1761556852006,0.15029054,1160.2,1156.1,0.55927807]
[1761556852201,2.13925744,1160.0,1156.0,0.986]
[1761556852407,2.13925744,1160.0,1156.1,0.55974678]
[1761556852605,2.28954798,1160.2,1156.2,0.55974678]
[1761556852801,2.28954798,1160.2,1156.3,0.55974678]
[1761556853102,0.15029054,1160.2,1156.4,0.55973777]
[1761556853409,0.15029054,1160.2,1156.5,0.55973777]
[1761556853611,0.15029054,1160.2,1156.0,0.986]
[1761556853804,0.15029054,1160.2,1156.1,0.55988158]
[1761556854007,0.15029054,1160.2,1156.2,0.55988158]
[1761556854204,0.15029054,1160.2,1156.3,0.55988158]
[1761556854505,0.15029054,1160.2,1156.4,0.55988158]
[1761556854704,0.15029054,1160.2,1156.5,0.55988158]
[1761556854907,0.15029054,1160.2,1156.0,1.61578724]
[1761556855104,0.15029054,1160.2,1156.1,0.56011888]
[1761556855308,0.15029054,1160.2,1156.2,0.56011888]
[1761556855806,2.28954798,1160.2,1156.2,0.56011888]
[1761556856004,2.28954798,1160.2,1156.3,0.56011888]
[1761556856206,2.28954798,1160.2,1156.0,0.986]
[1761556856406,2.28954798,1160.2,1156.1,0.56109263]
[1761556856613,2.28954798,1160.2,1156.2,0.56109263]
[1761556856810,2.13925744,1159.8,1156.0,0.986]
[1761556857108,2.13925744,1159.8,1156.1,0.56119955]
[1761556857308,2.13925744,1159.7,1156.2,0.56119955]
[1761556857612,2.13925744,1159.7,1156.0,0.986]
[1761556857806,2.13925744,1159.7,1156.3,1.181]
[1761556858407,2.13925744,1159.6,1156.3,1.181]
[1761556859307,2.13925744,1159.5,1156.3,1.181]
[1761556860511,2.13925744,1159.9,1156.3,1.181]
[1761556861012,2.13925744,1160.0,1156.3,1.181]
[1761556861413,2.9949059,1159.8,1156.3,1.181]
[1761556861610,2.13925744,1159.4,1156.3,1.181]
[1761556862711,0.15029054,1160.2,1156.3,1.181]
[1761556862712,2.13925744,1159.1,1156.3,1.181]
[1761556863114,2.13925744,1159.0,1156.3,1.181]
[1761556863811,2.13925744,1159.1,1156.3,1.181]
[1761556864209,2.13925744,1159.4,1156.3,1.181]
[1761556865811,2.13925744,1158.7,1156.3,1.181]
[1761556866513,2.13925744,1158.5,1156.3,1.181]
[1761556867313,2.13925744,1158.6,1156.3,1.181]
[1761556868315,2.9949059,1159.1,1156.3,1.181]
[1761556868316,2.13925744,1158.5,1156.3,1.181]
[1761556868912,2.13925744,1159.3,1156.3,1.181]
[1761556869419,2.13925744,1158.3,1156.3,1.181]
[1761556869813,5.13416334,1158.3,1156.3,1.181]
[1761556870017,2.13925744,1157.9,1156.3,1.181]
[1761556870618,2.13925744,1157.6,1156.3,1.181]
[1761556871517,2.13925744,1157.7,1156.3,1.181]
[1761556872617,2.13925744,1157.5,1156.3,1.181]
[1761556873617,2.13925744,1157.7,1156.3,1.181]
[1761556874617,2.13925744,1157.8,1156.3,1.181]
[1761556875314,2.9949059,1158.2,1156.3,1.181]
[1761556876019,2.13925744,1158.7,1156.3,1.181]
[1761556876318,2.13925744,1158.9,1156.3,1.181]
[1761556877218,2.13925744,1159.0,1156.3,1.181]
[1761556878315,2.9949059,1159.7,1156.3,1.181]
[1761556878316,2.13925744,1159.1,1156.3,1.181]
[1761556879817,2.13925744,1159.0,1156.3,1.181]
[1761556880320,2.13925744,1159.1,1156.3,1.181]
[1761556880920,2.13925744,1158.7,1156.3,1.181]
[1761556881721,2.13925744,1158.3,1156.3,1.181]
[1761556882121,2.13925744,1158.8,1156.3,1.181]
[1761556882621,2.13925744,1158.9,1156.3,1.181]
[1761556883222,2.13925744,1158.8,1156.3,1.181]
[1761556883824,5.13416334,1159.4,1156.3,1.181]
[1761556884424,2.13925744,1159.4,1156.3,1.181]
[1761556886324,2.13925744,1159.8,1156.3,1.181]
[1761556886822,2.13925744,1159.7,1156.3,1.181]
[1761556888422,2.13925744,1159.8,1156.3,1.181]
[1761556890323,2.13925744,1159.5,1156.3,1.181]
[1761556890825,2.13925744,1159.6,1156.3,1.181]
[1761556891423,2.13925744,1159.2,1156.3,1.181]
[1761556892429,2.13925744,1158.6,1156.3,1.181]
[1761556893932,2.13925744,1158.5,1156.3,1.181]
[1761556894431,2.13925744,1158.4,1156.3,1.181]
[1761556895429,4.2445844,1159.8,1156.3,1.181]
[1761556895430,2.13925744,1158.2,1156.3,1.181]
[1761556896031,2.13925744,1158.1,1156.3,1.181]
[1761556898027,2.9949059,1158.5,1156.3,1.181]
[1761556898533,2.13925744,1158.7,1156.3,1.181]
[1761556900729,2.13925744,1158.6,1156.3,1.181]
[1761556901228,2.13925744,1158.5,1156.3,1.181]
[1761556902732,2.13925744,1158.9,1156.3,1.181]
[1761556904135,2.13925744,1158.9,1156.4,1.139]
[1761556904334,2.13925744,1158.4,1156.4,1.139]
[1761556904534,2.13925744,1158.5,1156.4,1.139]
[1761556904931,2.13925744,1158.3,1156.4,1.139]
[1761556905532,2.13925744,1158.2,1156.4,1.139]
[1761556908137,2.13925744,1158.1,1156.4,1.139]
[1761556908636,2.13925744,1158.2,1156.4,1.139]
[1761556909234,2.13925744,1158.1,1156.4,1.139]
[1761556909738,2.13925744,1158.0,1156.4,1.139]
[1761556910438,2.13925744,1158.3,1156.4,1.139]
[1761556911335,2.13925744,1158.2,1156.4,1.139]
[1761556911842,2.13925744,1158.3,1156.4,1.139]
[1761556912341,2.13925744,1158.2,1156.4,1.139]
[1761556912736,2.13925744,1158.3,1156.4,1.139]
[1761556913539,2.13925744,1158.2,1156.4,1.139]
[1761556914440,2.13925744,1158.1,1156.4,1.139]
[1761556915143,2.13925744,1157.7,1156.3,1.181]
[1761556915644,2.13925744,1157.7,1154.7,0.63827201]
[1761556915844,2.13925744,1157.9,1154.7,0.63827201]
[1761556916240,2.13925744,1157.8,1154.7,0.63827201]
[1761556917345,2.13925744,1157.7,1154.7,0.63827201]
[1761556917542,2.13925744,1157.7,1154.8,0.945]
[1761556917744,2.13925744,1157.7,1154.9,0.56812185]
[1761556918242,2.13925744,1157.6,1154.9,0.56812185]
[1761556918849,2.13925744,1157.8,1154.9,0.56812185]
[1761556919346,2.13925744,1157.6,1154.9,0.56812185]
[1761556919850,2.9949059,1158.1,1154.9,0.56812185]
[1761556920650,2.13925744,1158.3,1154.9,0.56812185]
[1761556921545,2.13925744,1157.3,1154.9,0.56812185]
[1761556921949,2.13925744,1157.6,1154.9,0.56812185]
[1761556922447,2.9949059,1157.9,1155.0,1.20639386]
[1761556922645,2.13925744,1158.0,1155.1,0.56812185]
[1761556922849,2.13925744,1158.0,1155.2,0.56812185]
[1761556923047,2.13925744,1158.0,1155.3,0.56812185]
[1761556923250,2.13925744,1158.0,1155.4,0.56812185]
[1761556923445,2.13925744,1158.0,1155.0,0.63827201]
[1761556923648,2.13925744,1158.0,1154.8,3.19759896]
[1761556923649,2.13925744,1157.6,1155.1,0.571181]
[1761556923950,2.13925744,1157.6,1155.2,0.571181]
[1761556924150,2.13925744,1157.3,1154.9,0.63827201]
[1761556924352,2.13925744,1157.3,1155.0,0.57136602]
[1761556924646,2.13925744,1157.3,1155.1,0.57136602]
[1761556924850,2.13925744,1157.3,1155.2,0.57136602]
[1761556925051,2.13925744,1157.4,1154.8,2.98327201]
[1761556925250,2.13925744,1157.4,1154.9,0.5705561]
[1761556925445,2.13925744,1157.4,1155.0,0.5705561]
[1761556925650,2.13925744,1157.4,1155.1,0.5705561]
[1761556925850,2.13925744,1157.4,1155.2,0.5705561]
[1761556926047,2.13925744,1157.4,1154.8,2.98327201]
[1761556926246,2.13925744,1157.4,1154.9,0.57069179]
[1761556926450,2.13925744,1157.4,1155.0,0.57069179]
[1761556926650,2.13925744,1157.5,1155.1,0.57069179]
[1761556926851,2.13925744,1157.5,1155.2,0.57069179]
[1761556927047,2.13925744,1157.5,1154.8,2.98327201]
[1761556927251,2.13925744,1157.5,1154.9,0.57076774]
[1761556927451,2.13925744,1157.5,1155.0,0.57076774]
[1761556927652,2.13925744,1157.4,1155.1,0.57076774]
[1761556927852,2.13925744,1157.4,1155.2,0.57076774]
[1761556928049,2.13925744,1157.4,1154.8,2.98327201]
[1761556928255,2.13925744,1157.4,1154.9,0.57091086]
[1761556928454,2.13925744,1157.4,1155.0,0.57091086]
[1761556928752,2.13925744,1157.4,1155.1,0.57091086]
[1761556928951,2.13925744,1157.4,1155.2,0.57091086]
[1761556929153,2.13925744,1157.4,1154.8,2.98327201]
[1761556929354,2.13925744,1157.4,1154.9,0.57094457]
[1761556929649,2.13925744,1157.4,1155.0,0.57094457]
[1761556929848,2.13925744,1157.4,1155.1,0.57094457]
[1761556930052,2.13925744,1157.4,1155.2,0.57094457]
[1761556930249,2.13925744,1157.5,1154.8,2.98327201]
[1761556930450,2.13925744,1157.5,1154.9,0.56939532]
[1761556930652,2.13925744,1157.5,1155.0,0.56939532]
[1761556930861,2.13925744,1157.2,1154.8,2.345]
[1761556931257,2.13925744,1157.3,1154.8,2.345]
[1761556932862,2.13925744,1157.4,1154.8,2.345]
[1761556933358,2.13925744,1157.6,1154.8,2.345]
[1761556934864,2.13925744,1156.5,1154.8,2.345]
[1761556936065,2.13925744,1156.4,1154.8,2.345]
[1761556936660,2.13925744,1156.5,1154.8,2.345]